fUSD/lending_fUSD_20250506
["ID","MTS","AMOUNT","RATE_DAILY","PERIOD"]
[360099311,1746549046160,-450.0,0.00019999,2]
[360099313,1746549046169,-450.0,0.00019999,2]
[360099315,1746549046180,-450.0,0.00019999,2]
[360099317,1746549046190,-539.02451514,0.00019999,2]
[360099319,1746549046199,-450.0,0.00019999,2]
[360099321,1746549046209,-450.0,0.00019999,2]
[360099323,1746549046218,-450.0,0.00019999,2]
[360099325,1746549046228,-450.0,0.00019999,2]
[360099327,1746549046237,-450.0,0.00019999,2]
[360099329,1746549046246,-450.0,0.00019999,2]
[360099331,1746549046256,-450.0,0.00019999,2]
[360099333,1746549046265,-450.0,0.00019999,2]
[360099335,1746549046274,-450.0,0.00019999,2]
[360099337,1746549046284,-450.0,0.00019999,2]
[360099339,1746549046293,-450.0,0.00019999,2]
[360099341,1746549046302,-227.51749209,0.00019999,2]
[360099343,1746549046311,-450.0,0.00019999,2]
[360099345,1746549046320,-450.0,0.00019999,2]
[360099347,1746549046329,-450.0,0.00019999,2]
[360099349,1746549046339,-450.0,0.00019999,2]
[360099351,1746549046348,-450.0,0.00019999,2]
[360099353,1746549046357,-450.0,0.00019999,2]
[360099355,1746549046366,-450.0,0.00019999,2]
[360099357,1746549046376,-450.0,0.00019999,2]
[360099359,1746549046385,-450.0,0.00019999,2]
[360099360,1746549046394,-471.95,0.00019999,2]
[360099361,1746549046403,-450.0,0.00019999,2]
[360099362,1746549046412,-450.0,0.00019999,2]
[360099363,1746549046421,-450.0,0.00019999,2]
[360099364,1746549046430,-450.0,0.00019999,2]
[360099365,1746549046439,-450.0,0.00019999,2]
[360099366,1746549046448,-450.0,0.00019999,2]
[360099367,1746549046457,-450.0,0.00019999,2]
[360099368,1746549046466,-450.0,0.00019999,2]
[360099369,1746549046475,-450.0,0.00019999,2]
[360099370,1746549046484,-374.76472461,0.00019999,2]
[360099371,1746549046493,-450.0,0.00019999,2]
[360099372,1746549046502,-450.0,0.00019999,2]
[360099373,1746549046511,-350.0,0.00019999,2]
[360099375,1746549046520,-450.0,0.00019999,2]
[360099377,1746549046530,-450.0,0.00019999,2]
[360099379,1746549046539,-450.0,0.00019999,2]
[360099381,1746549046549,-450.0,0.00019999,2]
[360099383,1746549046558,-431.26233819,0.00019999,2]
[360099385,1746549046568,-450.0,0.00019999,2]
[360099387,1746549046577,-450.0,0.00019999,2]
[360099389,1746549046586,-450.0,0.00019999,2]
[360099391,1746549046595,-450.0,0.00019999,2]
[360099393,1746549046605,-496.50540004,0.00019999,2]
[360099395,1746549046614,-500.0,0.00019999,2]
[360099397,1746549046624,-450.0,0.00019999,2]
[360099399,1746549046633,-450.0,0.00019999,2]
[360099401,1746549046642,-450.0,0.00019999,2]
[360099403,1746549046651,-449.46205048,0.00019999,2]
[360099404,1746549046660,-450.0,0.00019999,2]
[360099406,1746549046669,-450.0,0.00019999,2]
[360099408,1746549046679,-450.0,0.00019999,2]
[360099410,1746549046689,-450.0,0.00019999,2]
[360099413,1746549046701,-450.0,0.00019999,2]
[360099414,1746549046710,-450.0,0.00019999,2]
[360099416,1746549046719,-450.0,0.00019999,2]
[360099418,1746549046728,-450.0,0.00019999,2]
[360099420,1746549046738,-450.0,0.00019999,2]
[360099422,1746549046748,-167.31,0.00019999,2]
[360099424,1746549046758,-450.0,0.00019999,2]
[360099426,1746549046767,-485.24365836,0.00019999,2]
[360099428,1746549046776,-262.47,0.00019999,2]
[360099430,1746549046786,-450.0,0.00019999,2]
[360099432,1746549046795,-450.0,0.00019999,2]
[360099434,1746549046805,-450.0,0.00019999,2]
[360099436,1746549046815,-450.0,0.00019999,2]
[360099438,1746549046824,-450.0,0.00019999,2]
[360099440,1746549046834,-400.0,0.00019999,2]
[360099442,1746549046844,-450.0,0.00019999,2]
[360099444,1746549046853,-2990.12,0.00019999,2]
[360099446,1746549046863,-2990.12,0.00019999,2]
[360099448,1746549046872,-2990.12,0.00019999,2]
[360099450,1746549046881,-2990.12,0.00019999,2]
[360099452,1746549046890,-2990.12,0.00019999,2]
[360099454,1746549046899,-2990.12,0.00019999,2]
[360099456,1746549046909,-2990.12,0.00019999,2]
[360099458,1746549046918,-2990.12,0.00019999,2]
[360099460,1746549046927,-2990.12,0.00019999,2]
[360099462,1746549046936,-2990.12,0.00019999,2]
[360099464,1746549046945,-2990.12,0.00019999,2]
[360099466,1746549046954,-2990.12,0.00019999,2]
[360099468,1746549046963,-2990.12,0.00019999,2]
[360099470,1746549046971,-2990.12,0.00019999,2]
[360099472,1746549046980,-2990.12,0.00019999,2]
[360099473,1746549046990,-2990.12,0.00019999,2]
[360099475,1746549046999,-2990.12,0.00019999,2]
[360099477,1746549047008,-2990.12,0.00019999,2]
[360099479,1746549047017,-2990.12,0.00019999,2]
[360099481,1746549047026,-2990.12,0.00019999,2]
[360099483,1746549047036,-2990.16004635,0.00019999,2]
[360099485,1746549047045,-490.0,0.00019999,2]
[360099487,1746549047054,-411.01286638,0.00019999,2]
[360099489,1746549047063,-557.31,0.00019999,2]
[360099491,1746549047071,-450.0,0.00019999,2]
[360099493,1746549047080,-291.76,0.00019999,2]
[360099495,1746549047092,-347.31363188,0.00019999,2]
[360099497,1746549047101,-470.0,0.00019999,2]
[360099499,1746549047110,-450.0,0.00019999,2]
[360099501,1746549047119,-450.0,0.00019999,2]
[360099503,1746549047131,-450.0,0.00019999,2]
[360099505,1746549047141,-450.0,0.00019999,2]
[360099507,1746549047150,-400.0,0.00019999,2]
[360099509,1746549047159,-490.0,0.00019999,2]
[360099511,1746549047169,-218.98702398,0.00019999,2]
[360099513,1746549047179,-450.0,0.00019999,2]
[360099515,1746549047188,-450.0,0.00019999,2]
[360099517,1746549047199,-450.0,0.00019999,2]
[360099519,1746549047208,-450.0,0.00019999,2]
[360099521,1746549047216,-253.96,0.00019999,2]
[360099523,1746549047226,-450.0,0.00019999,2]
[360099525,1746549047235,-450.0,0.00019999,2]
[360099527,1746549047244,-450.0,0.00019999,2]
[360099529,1746549047253,-450.0,0.00019999,2]
[360099531,1746549047262,-350.0,0.00019999,2]
[360099532,1746549047271,-300.0,0.00019999,2]
[360099534,1746549047280,-450.0,0.00019999,2]
[360099536,1746549047289,-174.46,0.00019999,2]
[360099538,1746549047298,-490.0,0.00019999,2]
[360099540,1746549047308,-283.41,0.00019999,2]
[360099542,1746549047316,-450.0,0.00019999,2]
[360099544,1746549047325,-450.0,0.00019999,2]
[360099546,1746549047334,-450.0,0.00019999,2]
[360099548,1746549047345,-373.8,0.00019999,2]
[360099549,1746549047354,-427.98,0.00019999,2]
[360099550,1746549047363,-450.0,0.00019999,2]
[360099551,1746549047371,-450.0,0.00019999,2]
[360099552,1746549047380,-450.0,0.00019999,2]
[360099553,1746549047390,-450.0,0.00019999,2]
[360099554,1746549047399,-450.0,0.00019999,2]
[360099555,1746549047407,-450.0,0.00019999,2]
[360099556,1746549047416,-450.0,0.00019999,2]
[360099557,1746549047425,-450.0,0.00019999,2]
[360099558,1746549047435,-259.32,0.00019999,2]
[360099559,1746549047445,-450.0,0.00019999,2]
[360099560,1746549047456,-450.0,0.00019999,2]
[360099561,1746549047465,-450.0,0.00019999,2]
[360099562,1746549047474,-450.0,0.00019999,2]
[360099563,1746549047483,-450.0,0.00019999,2]
[360099564,1746549047492,-450.0,0.00019999,2]
[360099565,1746549047501,-450.0,0.00019999,2]
[360099566,1746549047510,-450.0,0.00019999,2]
[360099567,1746549047519,-467.36,0.00019999,2]
[360099568,1746549047528,-450.0,0.00019999,2]
[360099569,1746549047537,-450.0,0.00019999,2]
[360099570,1746549047546,-450.0,0.00019999,2]
[360099571,1746549047555,-450.0,0.00019999,2]
[360099572,1746549047565,-450.0,0.00019999,2]
[360099573,1746549047574,-450.0,0.00019999,2]
[360099574,1746549047583,-450.0,0.00019999,2]
[360099575,1746549047592,-478.14,0.00019999,2]
[360099576,1746549047601,-450.0,0.00019999,2]
[360099577,1746549047610,-450.0,0.00019999,2]
[360099578,1746549047620,-155.76,0.00019999,2]
[360099579,1746549047629,-470.0,0.00019999,2]
[360099580,1746549047638,-450.0,0.00019999,2]
[360099581,1746549047647,-450.0,0.00019999,2]
[360099582,1746549047657,-450.0,0.00019999,2]
[360099583,1746549047667,-450.0,0.00019999,2]
[360099584,1746549047676,-450.0,0.00019999,2]
[360099585,1746549047685,-450.0,0.00019999,2]
[360099586,1746549047695,-450.0,0.00019999,2]
[360099587,1746549047704,-450.0,0.00019999,2]
[360099588,1746549047713,-450.0,0.00019999,2]
[360099589,1746549047723,-450.0,0.00019999,2]
[360099590,1746549047734,-450.0,0.00019999,2]
[360099591,1746549047743,-450.0,0.00019999,2]
[360099592,1746549047753,-450.0,0.00019999,2]
[360099593,1746549047763,-450.0,0.00019999,2]
[360099594,1746549047772,-450.0,0.00019999,2]
[360099595,1746549047781,-450.0,0.00019999,2]
[360099596,1746549047790,-450.0,0.00019999,2]
[360099597,1746549047799,-450.0,0.00019999,2]
[360099598,1746549047809,-450.0,0.00019999,2]
[360099599,1746549047818,-526.82,0.00019999,2]
[360099600,1746549047827,-450.0,0.00019999,2]
[360099601,1746549047836,-553.04,0.00019999,2]
[360099602,1746549047847,-450.0,0.00019999,2]
[360099603,1746549047857,-450.0,0.00019999,2]
[360099604,1746549047867,-450.0,0.00019999,2]
[360099605,1746549047876,-450.0,0.00019999,2]
[360099606,1746549047885,-450.0,0.00019999,2]
[360099607,1746549047895,-450.0,0.00019999,2]
[360099608,1746549047904,-450.0,0.00019999,2]
[360099609,1746549047915,-450.0,0.00019999,2]
[360099610,1746549047926,-450.0,0.00019999,2]
[360099611,1746549047935,-450.0,0.00019999,2]
[360099612,1746549047944,-450.0,0.00019999,2]
[360099613,1746549047953,-450.0,0.00019999,2]
[360099614,1746549047962,-450.0,0.00019999,2]
[360099615,1746549047971,-450.0,0.00019999,2]
[360099616,1746549047981,-450.0,0.00019999,2]
[360099617,1746549047990,-450.0,0.00019999,2]
[360099618,1746549048000,-450.0,0.00019999,2]
[360099619,1746549048009,-453.00257842,0.00019999,2]
[360099620,1746549048018,-450.0,0.00019999,2]
[360099621,1746549048027,-450.0,0.00019999,2]
[360099622,1746549048037,-450.0,0.00019999,2]
[360099623,1746549048046,-450.0,0.00019999,2]
[360099624,1746549048056,-450.0,0.00019999,2]
[360099625,1746549048066,-450.0,0.00019999,2]
[360099626,1746549048075,-450.0,0.00019999,2]
[360099627,1746549048085,-450.0,0.00019999,2]
[360099628,1746549048095,-563.04,0.00019999,2]
[360099629,1746549048104,-450.0,0.00019999,2]
[360099630,1746549048114,-450.0,0.00019999,2]
[360099631,1746549048127,-450.0,0.00019999,2]
[360099632,1746549048136,-450.0,0.00019999,2]
[360099633,1746549048146,-450.0,0.00019999,2]
[360099634,1746549048155,-450.0,0.00019999,2]
[360099635,1746549048165,-450.0,0.00019999,2]
[360099636,1746549048174,-450.0,0.00019999,2]
[360099637,1746549048184,-450.0,0.00019999,2]
[360099638,1746549048193,-450.0,0.00019999,2]
[360099639,1746549048203,-450.0,0.00019999,2]
[360099640,1746549048213,-450.0,0.00019999,2]
[360099641,1746549048222,-450.0,0.00019999,2]
[360099642,1746549048231,-397.28,0.00019999,2]
[360099643,1746549048241,-450.0,0.00019999,2]
[360099644,1746549048250,-450.0,0.00019999,2]
[360099645,1746549048259,-450.0,0.00019999,2]
[360099646,1746549048268,-264.63,0.00019999,2]
[360099647,1746549048278,-450.0,0.00019999,2]
[360099648,1746549048287,-450.0,0.00019999,2]
[360099649,1746549048297,-450.0,0.00019999,2]
[360099650,1746549048306,-490.0,0.00019999,2]
[360099651,1746549048315,-450.0,0.00019999,2]
[360099653,1746549048325,-450.0,0.00019999,2]
[360099655,1746549048334,-450.0,0.00019999,2]
[360099657,1746549048343,-450.0,0.00019999,2]
[360099660,1746549048508,-450.0,0.00019999,2]
[360099661,1746549048518,-450.0,0.00019999,2]
[360099662,1746549048528,-450.0,0.00019999,2]
[360099663,1746549048538,-450.0,0.00019999,2]
[360099664,1746549048548,-450.0,0.00019999,2]
[360099665,1746549048558,-450.0,0.00019999,2]
[360099666,1746549048567,-450.0,0.00019999,2]
[360099667,1746549048577,-450.0,0.00019999,2]
[360099668,1746549048587,-165.77,0.00019999,2]
[360099669,1746549048597,-450.0,0.00019999,2]
[360099670,1746549048607,-450.0,0.00019999,2]
[360099671,1746549048616,-450.0,0.00019999,2]
[360099672,1746549048626,-450.0,0.00019999,2]
[360099673,1746549048636,-450.0,0.00019999,2]
[360099674,1746549048646,-450.0,0.00019999,2]
[360099675,1746549048656,-450.0,0.00019999,2]
[360099676,1746549048666,-450.0,0.00019999,2]
[360099677,1746549048676,-450.0,0.00019999,2]
[360099678,1746549048686,-450.0,0.00019999,2]
[360099679,1746549048696,-450.0,0.00019999,2]
[360099680,1746549048706,-450.0,0.00019999,2]
[360099681,1746549048716,-450.0,0.00019999,2]
[360099682,1746549048727,-450.0,0.00019999,2]
[360099683,1746549048737,-450.0,0.00019999,2]
[360099684,1746549048747,-276.64,0.00019999,2]
[360099685,1746549048757,-450.0,0.00019999,2]
[360099686,1746549048767,-387.82959839,0.00019999,2]
[360099687,1746549048777,-4460.93,0.00019999,2]
[360099688,1746549048786,-4460.93,0.00019999,2]
[360099689,1746549048796,-4460.93,0.00019999,2]
[360099690,1746549048806,-4460.93,0.00019999,2]
[360099691,1746549048816,-4460.93,0.00019999,2]
[360099692,1746549048826,-4460.93,0.00019999,2]
[360099693,1746549048837,-4460.93,0.00019999,2]
[360099694,1746549048847,-450.0,0.00019999,2]
[360099695,1746549048858,-4460.93,0.00019999,2]
[360099696,1746549048868,-450.0,0.00019999,2]
[360099697,1746549048877,-4460.93,0.00019999,2]
[360099698,1746549048887,-4460.93,0.00019999,2]
[360099699,1746549048897,-4460.93,0.00019999,2]
[360099700,1746549048907,-4460.93,0.00019999,2]
[360099701,1746549048917,-4460.93,0.00019999,2]
[360099702,1746549048928,-4460.93,0.00019999,2]
[360099703,1746549048938,-4460.93,0.00019999,2]
[360099704,1746549048947,-4460.93,0.00019999,2]
[360099705,1746549048958,-4460.93,0.00019999,2]
[360099706,1746549048968,-4460.93,0.00019999,2]
[360099707,1746549048978,-4460.93,0.00019999,2]
[360099708,1746549048987,-470.0,0.00019999,2]
[360099709,1746549048997,-4460.93,0.00019999,2]
[360099710,1746549049007,-566.82,0.00019999,2]
[360099711,1746549049016,-4461.07,0.00019999,2]
[360099712,1746549049026,-450.0,0.00019999,2]
[360099713,1746549049035,-450.0,0.00019999,2]
[360099714,1746549049044,-450.0,0.00019999,2]
[360099715,1746549049054,-450.0,0.00019999,2]
[360099716,1746549049063,-450.0,0.00019999,2]
[360099717,1746549049073,-395.05,0.00019999,2]
[360099718,1746549049082,-450.0,0.00019999,2]
[360099719,1746549049092,-450.0,0.00019999,2]
[360099720,1746549049102,-450.0,0.00019999,2]
[360099721,1746549049111,-450.0,0.00019999,2]
[360099722,1746549049123,-450.0,0.00019999,2]
[360099723,1746549049134,-450.0,0.00019999,2]
[360099724,1746549049144,-450.0,0.00019999,2]
[360099725,1746549049153,-450.0,0.00019999,2]
[360099726,1746549049163,-450.0,0.00019999,2]
[360099727,1746549049173,-260.04,0.00019999,2]
[360099728,1746549049183,-450.0,0.00019999,2]
[360099729,1746549049192,-450.0,0.00019999,2]
[360099730,1746549049203,-450.0,0.00019999,2]
[360099731,1746549049213,-291.39,0.00019999,2]
[360099732,1746549049223,-450.0,0.00019999,2]
[360099733,1746549049232,-450.0,0.00019999,2]
[360099734,1746549049241,-450.0,0.00019999,2]
[360099735,1746549049251,-450.0,0.00019999,2]
[360099736,1746549049261,-450.0,0.00019999,2]
[360099737,1746549049270,-450.0,0.00019999,2]
[360099738,1746549049280,-450.0,0.00019999,2]
[360099739,1746549049290,-450.0,0.00019999,2]
[360099740,1746549049300,-419.2,0.00019999,2]
[360099741,1746549049310,-486.48,0.00019999,2]
[360099742,1746549049319,-862.76,0.00019999,2]
[360099743,1746549049329,-513.33,0.00019999,2]
[360099744,1746549049339,-862.76,0.00019999,2]
[360099745,1746549049349,-862.76,0.00019999,2]
[360099746,1746549049358,-862.76,0.00019999,2]
[360099747,1746549049368,-862.76,0.00019999,2]
[360099748,1746549049379,-171.7486445,0.00019999,2]
[360099749,1746549049390,-862.76,0.00019999,2]
[360099750,1746549049400,-862.76,0.00019999,2]
[360099751,1746549049410,-862.76,0.00019999,2]
[360099752,1746549049420,-450.0,0.00019999,2]
[360099753,1746549049430,-862.76,0.00019999,2]
[360099754,1746549049440,-450.0,0.00019999,2]
[360099755,1746549049449,-862.76,0.00019999,2]
[360099756,1746549049459,-450.0,0.00019999,2]
[360099757,1746549049468,-501.63,0.00019999,2]
[360099758,1746549049479,-862.76,0.00019999,2]
[360099759,1746549049489,-862.76,0.00019999,2]
[360099760,1746549049499,-862.76,0.00019999,2]
[360099761,1746549049508,-862.76,0.00019999,2]
[360099762,1746549049518,-862.76,0.00019999,2]
[360099763,1746549049527,-862.76,0.00019999,2]
[360099764,1746549049536,-862.76,0.00019999,2]
[360099765,1746549049546,-862.76,0.00019999,2]
[360099766,1746549049555,-450.0,0.00019999,2]
[360099767,1746549049565,-862.76,0.00019999,2]
[360099768,1746549049574,-450.0,0.00019999,2]
[360099769,1746549049584,-862.76,0.00019999,2]
[360099770,1746549049594,-393.68,0.00019999,2]
[360099771,1746549049603,-862.87999999,0.00019999,2]
[360099772,1746549049613,-450.0,0.00019999,2]
[360099773,1746549049623,-476.85,0.00019999,2]
[360099774,1746549049632,-690.0,0.00019999,2]
[360099775,1746549049642,-722.003,0.0002,2]
[360099776,1746549049651,-1242.0,0.0002,2]
[360099777,1746549049660,-5933.0,0.0002,2]
[360099778,1746549049670,-4015.0,0.0002,2]
[360099779,1746549049679,-183.325,0.0002,2]
[360099780,1746549049691,-275.675,0.0002,2]
[360099781,1746549049700,-6764.0,0.0002,2]
[360099782,1746549049710,-1432.157,0.0002,2]
[360099783,1746549049719,-556.98,0.0002,2]
[360099784,1746549049729,-200.61211145,0.0002,2]
[360099785,1746549049738,-364683.04768313,0.0002,2]
[360099786,1746549049747,-484077.28662065,0.0002,2]
[360099787,1746549049779,-317.35205343,0.00019866,2]
[360099788,1746549049789,-494.80299464,0.0002,2]
[360099789,1746549049800,-949.42,0.0002,2]
[360099790,1746549050007,-173.22394481,0.00019833,2]
[360099791,1746549050017,-317.35205343,0.00019878,2]
[360099792,1746549050027,-297.48300176,0.00019897,2]
[360099793,1746549104774,250.0,0.00019102,2]
[360099794,1746549170894,152.71,0.000298,31]
[360099795,1746549170937,152.71,0.000298,31]
[360099796,1746549170984,152.71,0.000298,31]
[360099797,1746549171045,152.71,0.000298,31]
[360099798,1746549171108,152.71,0.000298,31]
[360099799,1746549171164,152.71,0.000298,31]
[360099800,1746549171239,152.71,0.000298,31]
[360099801,1746549501302,20000.0,0.0003,30]
[360099802,1746549720318,1000.0,0.00018915,2]
[360099803,1746549757217,912.42,0.00016962,2]
[360099804,1746549757436,912.42,0.00019226,2]
[360099805,1746549944698,250.0,0.00017,2]
[360099806,1746549945789,300.0,0.00019,2]
[360099807,1746549946988,-164.52,0.00019525,2]
[360099808,1746550113054,198.69,0.0001887,2]
[360099809,1746550175168,168.74,0.00013699,2]
[360099810,1746550175852,168.74,0.00013699,2]
[360099811,1746550176326,168.74,0.00013699,2]
[360099812,1746550176790,168.74,0.00013699,2]
[360099813,1746550177182,168.74,0.00013699,2]
[360099814,1746550177908,168.74,0.00013699,2]
[360099815,1746550178348,168.74109489,0.00013699,2]
[360099819,1746550231874,-250.0,0.00019631,2]
[360099821,1746550231885,-200.0,0.00019658,2]
[360099823,1746550231894,-250.0,0.00019699,2]
[360099825,1746550231904,-500.0,0.00019753,2]
[360099827,1746550231913,-493.0,0.0001977,2]
[360099829,1746550231923,-161.72034832,0.00019798,2]
[360099831,1746550231932,-177.54219208,0.00019798,2]
[360099833,1746550231942,-791.03173763,0.00019798,2]
[360099834,1746550231951,-161.72034825,0.00019809,2]
[360099835,1746550231961,-791.03173761,0.00019809,2]
[360099836,1746550231970,-1200.0,0.0001982,2]
[360099837,1746550231979,-300.0,0.0001982,2]
[360099838,1746550231989,-161.72034825,0.00019821,2]
[360099839,1746550231998,-228.78072044,0.00019821,2]
[360099840,1746550232009,-562.25101717,0.00019821,2]
[360099841,1746550232019,-178.06,0.00019828,7]
[360099842,1746550232028,-207.4,0.00019828,2]
[360099843,1746550232037,-300.0,0.00019831,2]
[360099844,1746550232047,-177.54219208,0.00019832,2]
[360099845,1746550232057,-161.72034825,0.00019832,2]
[360099846,1746550232066,-791.03173761,0.00019832,2]
[360099847,1746550232076,-221.32087901,0.0001984,2]
[360099848,1746550232087,-2000.0,0.0001984,2]
[360099849,1746550232097,-161.72034825,0.00019843,2]
[360099850,1746550232107,-791.03173761,0.00019843,2]
[360099851,1746550232116,-161.72034825,0.00019855,2]
[360099852,1746550232125,-791.03173761,0.00019855,2]
[360099853,1746550232135,-500.0,0.00019863,2]
[360099854,1746550232144,-618.24406251,0.00019864,2]
[360099855,1746550232153,-177.54219208,0.00019866,2]
[360099856,1746550232163,-161.72034825,0.00019866,2]
[360099857,1746550232172,-791.03173761,0.00019866,2]
[360099858,1746550232181,-244.4685,0.00019868,2]
[360099859,1746550232191,-2724.09737515,0.00019872,2]
[360099860,1746550232200,-166.06832199,0.00019873,2]
[360099861,1746550232209,-387.77882415,0.00019873,2]
[360099862,1746550232218,-500.0,0.00019873,2]
[360099863,1746550232228,-500.0,0.00019873,2]
[360099864,1746550232237,-486.31580339,0.00019873,2]
[360099865,1746550232247,-558.63313616,0.00019873,2]
[360099866,1746550232256,-500.99256753,0.00019873,2]
[360099867,1746550232266,-500.0,0.00019873,2]
[360099868,1746550232275,-359.94693558,0.00019873,2]
[360099869,1746550232284,-500.0,0.00019873,2]
[360099870,1746550232293,-500.0,0.00019873,2]
[360099871,1746550232303,-500.0,0.00019873,2]
[360099873,1746550232312,-500.0,0.00019873,2]
[360099875,1746550232321,-500.0,0.00019873,2]
[360099877,1746550232331,-3203.29233199,0.00019874,2]
[360099880,1746550232349,-9296.70766801,0.00019874,2]
[360099882,1746550232358,-161.72034825,0.00019877,2]
[360099883,1746550232367,-791.03173761,0.00019877,2]
[360099885,1746550232376,-2769.66761158,0.0001988,2]
[360099886,1746550232386,-12500.0,0.00019882,2]
[360099887,1746550232396,-151.0,0.00019885,2]
[360099888,1746550232405,-155.0,0.00019885,2]
[360099889,1746550232415,-949.47,0.00019888,2]
[360099890,1746550232424,-161.72034825,0.00019889,2]
[360099891,1746550232433,-791.03173761,0.00019889,2]
[360099892,1746550232442,-12500.0,0.00019891,2]
[360099893,1746550232451,-5800.0,0.00019892,2]
[360099895,1746550232460,-500.0,0.00019896,2]
[360099897,1746550232469,-500.0,0.00019896,2]
[360099898,1746550232478,-500.0,0.00019896,2]
[360099899,1746550232487,-500.0,0.00019896,2]
[360099900,1746550232496,-500.0,0.00019896,2]
[360099901,1746550232506,-500.0,0.00019896,2]
[360099902,1746550232516,-500.0,0.00019896,2]
[360099903,1746550232525,-500.0,0.00019896,2]
[360099904,1746550232534,-500.0,0.00019896,2]
[360099905,1746550232544,-500.0,0.00019896,2]
[360099906,1746550232554,-500.0,0.00019896,2]
[360099907,1746550232563,-500.0,0.00019896,2]
[360099908,1746550232572,-500.0,0.00019896,2]
[360099909,1746550232581,-311.52981565,0.00019896,2]
[360099910,1746550232591,-500.0,0.00019896,2]
[360099911,1746550232600,-500.0,0.00019896,2]
[360099912,1746550232610,-500.0,0.00019896,2]
[360099913,1746550232619,-500.0,0.00019896,2]
[360099914,1746550232628,-500.0,0.00019896,2]
[360099915,1746550232637,-500.0,0.00019896,2]
[360099916,1746550232647,-492.29701483,0.00019897,2]
[360099917,1746550232656,-450.0,0.00019897,2]
[360099918,1746550232666,-586.2421258,0.00019897,2]
[360099919,1746550232676,-501.98829718,0.00019897,2]
[360099920,1746550232686,-451.62736417,0.00019897,2]
[360099921,1746550232695,-450.0,0.00019897,2]
[360099922,1746550232705,-545.23142837,0.00019897,2]
[360099923,1746550232714,-500.0,0.00019897,2]
[360099924,1746550232723,-450.0,0.00019897,2]
[360099925,1746550232732,-500.0,0.00019897,2]
[360099926,1746550232742,-511.5660646,0.00019897,2]
[360099927,1746550232751,-567.50961743,0.00019897,2]
[360099928,1746550232760,-450.0,0.00019897,2]
[360099929,1746550232770,-478.41753717,0.00019897,2]
[360099930,1746550232780,-162.04232989,0.00019897,2]
[360099931,1746550232793,-550.0,0.00019897,2]
[360099932,1746550232803,-575.65186972,0.00019897,2]
[360099933,1746550232812,-450.0,0.00019897,2]
[360099934,1746550232821,-457.76272659,0.00019897,2]
[360099935,1746550232831,-259.06140947,0.00019897,2]
[360099936,1746550232843,-450.0,0.00019897,2]
[360099937,1746550232852,-450.0,0.00019897,2]
[360099938,1746550232862,-550.0,0.00019897,2]
[360099939,1746550232871,-550.0,0.00019897,2]
[360099940,1746550232881,-450.0,0.00019897,2]
[360099941,1746550232890,-450.0,0.00019897,2]
[360099942,1746550232899,-550.0,0.00019897,2]
[360099943,1746550232909,-450.0,0.00019897,2]
[360099944,1746550232918,-450.0,0.00019897,2]